Cogmind - Beta 13 @@@ ROGUE MODE // 2024.04.18 @ 06:14:58 Player: sick0r Result: Destroyed by G-47 Trooper with Particle Gun Performance ------------- Evolutions (2) 1000 Regions Visited (6) 1200 Robots Destroyed (60) 300 Value Destroyed (1501) 1501 Prototype IDs (29) 580 Alien Tech Used (0) 0 Bonus (322) 322 TOTAL SCORE: 4903 Bonus ------- High Alert Combat Kills 22 Aligned with FarCom 300 Cogmind --------- Core Integrity 0/550 Matter 300/300 Energy 80/100 System Corruption 6% Temperature Cool (9) Movement Walking (90) Location -8/Materials Parts ------- > --- POWER (2) -------- (None) > --- PROPULSION (3) --- Potential Leg Potential Leg > --- UTILITY (4) ------ High-capacity Storage Unit Advanced Targeting Computer Reaction Control System Reflective Plating > --- WEAPON (2) ------- Katana > --- INVENTORY (20) --- Aluminum Leg Cargo Storage Unit Compact Battery (200) High-capacity Matter Pod (200) Advanced EMP Blaster Peak State ------------ > --- POWER ------------ (None) > --- PROPULSION ------- Potential Leg Potential Leg > --- UTILITY ---------- High-capacity Storage Unit Advanced Targeting Computer Reflective Plating System Shield > --- WEAPON ----------- Katana > --- INVENTORY -------- Aluminum Leg Cargo Storage Unit Compact Battery High-capacity Matter Pod Reaction Control System Advanced EMP Blaster [Rating: 34] Favorites ----------- Power Ion Engine Engine Ion Engine Power Core Nuclear Core Propulsion Aluminum Leg Leg Aluminum Leg Wheel Wheel Utility High-capacity Storage Unit Device Heat Sink Storage High-capacity Storage Unit Processor Targeting Computer Hackware System Shield Protection Light Armor Plating Weapon Light Cannon Energy Gun Small Laser Energy Cannon Advanced Beam Cannon Ballistic Gun Autogun Ballistic Cannon Light Cannon Launcher Advanced EMP Blaster Slashing Weapon Katana Build | -11 -10 -9 -9 -9 -8 -8 ------- Run | Yrd Mat Mat Min Exi Min Mat Slots Evolved 4 | . . 2 . . . 2 Power 1 | . . . . . . 1 Propulsion 1 | . . 1 . . . . Utility 2 | . . 1 . . . 1 Weapon . | . . . . . . . Parts Attached 66 | 7 20 5 . 1 . 33 Power 8 | 1 2 . . . . 5 Engine 6 | 1 2 . . . . 3 Core 2 | . . . . . . 2 Reactor . | . . . . . . . Propulsion 18 | 3 6 1 . 1 . 7 Treads . | . . . . . . . Leg 7 | 2 3 . . . . 2 Wheel 11 | 1 3 1 . 1 . 5 Hover . | . . . . . . . Flight . | . . . . . . . Utility 20 | 1 7 1 . . . 11 Device 5 | . 1 . . . . 4 Storage 5 | 1 4 . . . . . Processor 4 | . 2 1 . . . 1 Hackware 1 | . . . . . . 1 Protection 5 | . . . . . . 5 Artifact . | . . . . . . . Weapon 20 | 2 5 3 . . . 10 Energy Gun 5 | 1 1 . . . . 3 Energy Cannon 5 | . 1 1 . . . 3 Ballistic Gun 4 | 1 1 1 . . . 1 Ballistic Cannon 3 | . 2 1 . . . . Launcher 2 | . . . . . . 2 Special Weapon . | . . . . . . . Impact Weapon . | . . . . . . . Slashing Weapon 1 | . . . . . . 1 Piercing Weapon . | . . . . . . . Special Melee Weapon . | . . . . . . . Unidentified Prototypes 4 | . 1 1 . . . 2 Parts Lost 25 | . 6 . . . . 19 Power 6 | . 2 . . . . 4 Propulsion 8 | . 1 . . . . 7 Utility 5 | . 1 . . . . 4 Weapon 6 | . 2 . . . . 4 Highest Loss Streak 12 | . 4 . . . . 12 To Critical Strikes 1 | . . . . . . 1 Average Slot Usage (%) 96 | . 95 95 100 100 100 94 Engine 12 | . 12 11 11 11 11 11 Leg 13 | . 25 . . . . . Wheel 15 | . 2 33 33 33 33 24 Device 2 | . 3 . . . . 3 Storage 12 | . 14 11 11 11 11 9 Processor 13 | . 7 18 22 22 22 17 Energy Gun 7 | . 11 . . . . 5 Energy Cannon 4 | . 1 4 11 11 11 5 Ballistic Gun 5 | . 3 10 11 11 11 5 Ballistic Cannon 6 | . 11 6 . . . . Naked Turns . | . . . . . . . Heaviest Build 65 | 10 50 52 52 52 52 65 Greatest Support 60 | 20 26 42 42 42 36 60 Greatest Overweight (x) 3 | . 3 1 1 1 1 2 Average Overweight (x) 1 | . 1 1 1 1 1 . Largest Inventory Capacity 20 | 8 20 20 20 20 20 20 Average Capacity 18 | 7 17 20 20 20 20 20 Most Carried 20 | 8 20 20 20 20 20 20 Average Carried 16 | 6 14 18 19 19 20 17 Final Capacity 20 | 8 20 20 20 20 20 20 Final Carried 20 | 6 19 19 20 20 20 6 Class Distribution -------------------- 96% | Mutant 3% | Scavenger-Mutant Dominant Class ---------------- Mutant | -10/Materials Mutant | -9/Materials Mutant | -9/Mines Mutant | -9/Exiles Mutant | -8/Mines Mutant | -8/Materials Resources | -11 -10 -9 -9 -9 -8 -8 ----------- Run | Yrd Mat Mat Min Exi Min Mat Matter Collected 1382 | 221 532 102 48 . . 479 Remotely . | . . . . . . . Salvage Created 1885 | . 530 92 32 . . 1231 Parts 113 | . 37 9 4 . . 63 Haulers Intercepted 1 | . . . . . . 1 Recyclers Shooed 5 | . 4 . . . . 1 Parts Field Recycled . | . . . . . . . Retrieved Matter . | . . . . . . . Parts Self-Destructed . | . . . . . . . Prevented . | . . . . . . . Kills | -11 -10 -9 -9 -9 -8 -8 ------- Run | Yrd Mat Mat Min Exi Min Mat Combat Hostiles Destroyed 39 | . 10 4 2 . . 23 Melee 2 | . . . . . . 2 Guns 20 | . 4 2 1 . . 13 Cannons 13 | . 6 2 1 . . 4 AOE 4 | . . . . . . 4 Classes Destroyed 11 | . 7 . . . . 4 Worker 1 | . . . . . . 1 Builder 3 | . 1 . . . . 2 Tunneler 3 | . 1 . . . . 2 Hauler 1 | . . . . . . 1 Recycler 2 | . 2 . . . . . Operator 2 | . 1 . . . . 1 Watcher 9 | . 3 2 . . . 4 Swarmer 17 | . 3 4 2 . . 8 Grunt 17 | . 7 . . . . 10 Brawler 1 | . . . . . . 1 Sentry 4 | . . . . . . 4 Best Kill Streak 5 | . 4 4 2 . . 5 Combat Bots Only 4 | . 4 3 2 . . 4 Max Kills in Single Turn 3 | . 2 1 1 . . 3 Gunslinging 1 | . . . . . . 1 Exploded 2 | . . . . . . 2 Melee 1 | . . . . . . 1 Uniques/NPCs Destroyed . | . . . . . . . Combat | -11 -10 -9 -9 -9 -8 -8 -------- Run | Yrd Mat Mat Min Exi Min Mat Hostile Shots Fired 262 | . 84 12 3 . . 163 Missed 48 | . 18 3 1 . . 26 Damage Taken 3161 | . 776 74 14 . . 2297 Core 681 | . 99 25 6 . . 551 Absorbed by Shields . | . . . . . . . Redirected to Shielding 8 | . . . . . . 8 Ignored by Resistances 50 | . . . . . . 50 Regen/Repaired (Parts) 89 | . . . . . . 89 Core Remaining (%) 84 | 100 60 . . . 92 . Volleys Fired 147 | . 65 14 2 . . 66 Largest 2 | . 2 2 2 . . 2 Hottest 131 | . 103 91 91 . . 131 Shots Fired 288 | . 128 28 4 . . 128 Gun 150 | . 67 14 2 . . 67 Cannon 127 | . 61 14 2 . . 50 Launcher 11 | . . . . . . 11 Special . | . . . . . . . Kinetic 130 | . 72 23 2 . . 33 Thermal 133 | . 56 5 2 . . 70 Explosive . | . . . . . . . Electromagnetic 25 | . . . . . . 25 Robot Hit Streak 17 | . 10 5 2 . . 17 Robot Miss Streak 6 | . 6 4 2 . . 5 Penetration Max . | . . . . . . . Secondary Targets 2 | . . . . . . 2 Max Gunslinging Chain 1 | . . . . . . 1 Shots Hit Robots 166 | . 63 10 2 . . 91 Core Hits 82 | . 26 6 2 . . 48 Critical Kills . | . . . . . . . Critical Parts Destroyed 1 | . . 1 . . . . Critical Strikes 1 | . . 1 . . . . Destroy 1 | . . 1 . . . . Melee Attacks 6 | . . . . . . 6 Impact . | . . . . . . . Slashing 6 | . . . . . . 6 Piercing . | . . . . . . . Sneak Attacks . | . . . . . . . Combat Hostiles . | . . . . . . . Follow-up Attacks . | . . . . . . . Damage Inflicted 3546 | . 951 162 54 . . 2379 Guns 1232 | . 309 73 14 . . 836 Cannons 1493 | . 642 89 40 . . 722 Explosions 711 | . . . . . . 711 Melee 110 | . . . . . . 110 Ramming . | . . . . . . . Kinetic 1092 | . 594 122 14 . . 362 Thermal 1649 | . 357 40 40 . . 1212 Explosive . | . . . . . . . Electromagnetic 695 | . . . . . . 695 Impact . | . . . . . . . Slashing 110 | . . . . . . 110 Piercing . | . . . . . . . Highest Corruption 6 | . . . . . . 6 Average Corruption 5 | . . . . . . 5 Corruption Purged . | . . . . . . . Corruption Blocked . | . . . . . . . Effects 33 | . . . . . . 33 Message Errors 9 | . . . . . . 9 Matter Fused 5 | . . . . . . 5 Heat Flow Errors 5 | . . . . . . 5 Energy Discharges 5 | . . . . . . 5 Data Loss (minor) 5 | . . . . . . 5 Data Loss (major) 2 | . . . . . . 2 Weapon Failures 2 | . . . . . . 2 Overload Shots . | . . . . . . . Overflow Damage 22 | . 3 . . . . 19 Projectiles 10 | . 3 . . . . 7 Explosions 12 | . . . . . . 12 Melee . | . . . . . . . Knockbacks 6 | . 6 . . . . . Impact . | . . . . . . . Kinetic 6 | . 6 . . . . . Secondary . | . . . . . . . Self-Inflicted Damage 273 | . . . . . . 273 Shots 10 | . . . . . . 10 Rammed . | . . . . . . . Targets Rammed . | . . . . . . . Kicked . | . . . . . . . Crushed . | . . . . . . . Highest Temperature 539 | . 229 65 88 . . 539 Average Temperature 109 | . 54 20 49 . . 144 Received Heat Transfer 1416 | . 345 . . . . 1071 Effects 15 | . . . . . . 15 Shutdowns 2 | . . . . . . 2 Energy Bleed 1 | . . . . . . 1 Interference 2 | . . . . . . 2 Short Circuit 1 | . . . . . . 1 Damage (minor) 2 | . . . . . . 2 Damage (major) 6 | . . . . . . 6 Damage (core) 1 | . . . . . . 1 Siege Activations . | . . . . . . . Robots Corrupted . | . . . . . . . Combat Hostiles . | . . . . . . . Parts Fried 6 | . . . . . . 6 Impact Corruptions . | . . . . . . . Robots Melted . | . . . . . . . Combat Hostiles . | . . . . . . . Parts Melted 4 | . 1 . . . . 3 Heat Transferred 3044 | . 759 74 74 . . 2137 Parts Sabotaged . | . . . . . . . Parts Stolen . | . . . . . . . Parts Stripped . | . . . . . . . Power Chain Reactions 2 | . . . . . . 2 Alert | -11 -10 -9 -9 -9 -8 -8 ------- Run | Yrd Mat Mat Min Exi Min Mat Peak Influence 433 | . 120 171 116 . . 433 Initial 66 | . . 3 66 . . . Average 68 | . 20 116 114 . . 178 Maximum Alert Level 2 | . . . . . . 2 Low Security (%) 90 | 100 100 100 100 . 100 62 Level 1 8 | . . . . . . 32 Level 2 1 | . . . . . . 5 Level 3 . | . . . . . . . Level 4 . | . . . . . . . Level 5 . | . . . . . . . High Security . | . . . . . . . Max Security . | . . . . . . . Squads Dispatched 5 | . 1 . . . . 4 Investigation 1 | . . . . . . 1 Extermination . | . . . . . . . Reinforcement 4 | . 1 . . . . 3 Assault . | . . . . . . . Garrison . | . . . . . . . Intercept . | . . . . . . . Searches Triggered . | . . . . . . . Construction Impeded 2 | . . . . . . 2 Haulers Reinforced . | . . . . . . . Active Scanning Responses . | . . . . . . . Cargo Convoy Interrupts . | . . . . . . . Stealth | -11 -10 -9 -9 -9 -8 -8 --------- Run | Yrd Mat Mat Min Exi Min Mat Distress Signals 7 | . . 4 . . . 3 Communications Jammed . | . . . . . . . Distress Signals . | . . . . . . . Times Spotted 73 | . 22 9 4 . . 38 Peak Tracking Total 4 | . 4 4 4 . . 4 Tactical Retreats 3 | . . 1 . . . 2 Traps | -11 -10 -9 -9 -9 -8 -8 ------- Run | Yrd Mat Mat Min Exi Min Mat Traps Triggered 3 | . . . . . . 3 Indirectly 2 | . . . . . . 2 Trap Hack Attempts . | . . . . . . . Triggered . | . . . . . . . Disarmed . | . . . . . . . Reprogrammed . | . . . . . . . Reused . | . . . . . . . Traps Extracted . | . . . . . . . Installed . | . . . . . . . Triggered . | . . . . . . . Machines | -11 -10 -9 -9 -9 -8 -8 ---------- Run | Yrd Mat Mat Min Exi Min Mat Machines Disabled 11 | . . . . . . 11 Max in Single Turn 7 | . . . . . . 7 Machines Repaired . | . . . . . . . Machines Dismantled . | . . . . . . . Machines Sabotaged . | . . . . . . . Overloaded Fab Kills . | . . . . . . . Hacking | -11 -10 -9 -9 -9 -8 -8 --------- Run | Yrd Mat Mat Min Exi Min Mat Machines Accessed 14 | . 3 1 . 5 . 5 Terminals 8 | . 3 1 . . . 4 Fabricators . | . . . . . . . Repair Stations 1 | . . . . . . 1 Recycling Units . | . . . . . . . Scanalyzers . | . . . . . . . Garrison Access . | . . . . . . . Total Hacks 65 | . 6 1 . 50 . 8 Successful 60 | . 3 1 . 50 . 6 Failed 5 | . 3 . . . . 2 Catastrophic 1 | . . . . . . 1 Database Lockouts . | . . . . . . . Manual 1 | . . . . 1 . . Terminals 13 | . 6 1 . . . 6 Fabricators . | . . . . . . . Repair Stations 2 | . . . . . . 2 Recycling Units . | . . . . . . . Scanalyzers . | . . . . . . . Garrison Access . | . . . . . . . Terminal Hacks 58 | . 3 1 . 50 . 4 Record 49 | . . . . 49 . . Prototype ID Bank 1 | . 1 . . . . . Unreport Threat 1 | . . . . . . 1 Locate Traps 4 | . 1 1 . . . 2 Reinforcement Status 1 | . . . . . . 1 Zone Layout 1 | . 1 . . . . . Derelict Proto ID Bank 1 | . . . . 1 . . Fabricator Hacks . | . . . . . . . Repair Station Hacks 2 | . . . . . . 2 Scan Component 1 | . . . . . . 1 Repair 1 | . . . . . . 1 Recycling Unit Hacks . | . . . . . . . Scanalyzer . | . . . . . . . Garrison Access Hacks . | . . . . . . . Unauthorized Hacks . | . . . . . . . Terminals . | . . . . . . . Fabricators . | . . . . . . . Repair Stations . | . . . . . . . Recycling Units . | . . . . . . . Scanalyzers . | . . . . . . . Garrison Access . | . . . . . . . Data Cores Recovered . | . . . . . . . Used . | . . . . . . . Hacking Detections 5 | . 2 . . . . 3 Full Trace Events . | . . . . . . . Feedback Events . | . . . . . . . Feedback Blocked . | . . . . . . . Robot Schematics Acquired . | . . . . . . . Robots Built . | . . . . . . . Authchips . | . . . . . . . Time . | . . . . . . . Total Robot Build Rating . | . . . . . . . Part Schematics Acquired . | . . . . . . . Parts Built . | . . . . . . . Authchips . | . . . . . . . Time . | . . . . . . . Total Part Build Rating . | . . . . . . . Parts Repaired 1 | . . . . . . 1 Time 32 | . . . . . . 32 Parts Recycled . | . . . . . . . Recycled Matter . | . . . . . . . Retrieved Matter . | . . . . . . . Retrieved Components . | . . . . . . . Parts Scanalyzed . | . . . . . . . Part Schematics Acquired . | . . . . . . . Parts Damaged . | . . . . . . . Bothacking | -11 -10 -9 -9 -9 -8 -8 ------------ Run | Yrd Mat Mat Min Exi Min Mat Used RIF Installer . | . . . . . . . Robots Hacked . | . . . . . . . Non-combat . | . . . . . . . Combat . | . . . . . . . Robot Hacks Applied . | . . . . . . . Relay Couplers Released . | . . . . . . . Fabnet Peak Effective % . | . . . . . . . Robots Rewired . | . . . . . . . Allies Hacked . | . . . . . . . Hacks Repelled . | . . . . . . . Allies | -11 -10 -9 -9 -9 -8 -8 -------- Run | Yrd Mat Mat Min Exi Min Mat Total Allies . | . . . . . . . Largest Group . | . . . . . . . Highest-Rated Group . | . . . . . . . Highest-Rated Ally . | . . . . . . . Total Orders . | . . . . . . . Ally Attacks . | . . . . . . . Total Damage . | . . . . . . . Kills . | . . . . . . . Allies Corrupted . | . . . . . . . Allies Melted . | . . . . . . . Intel | -11 -10 -9 -9 -9 -8 -8 ------- Run | Yrd Mat Mat Min Exi Min Mat Robot Analysis Total . | . . . . . . . Derelict Logs Recovered 1 | . . . 1 . . . Drone Launches . | . . . . . . . Drone Recoveries . | . . . . . . . Exploration | -11 -10 -9 -9 -9 -8 -8 ------------- Run | Yrd Mat Mat Min Exi Min Mat Turns Passed 5895 | 66 3033 293 120 1042 76 1265 Spaces Moved 3338 | 50 1237 219 106 996 76 654 Core 11 | 11 . . . . . . Treads . | . . . . . . . Legs 1192 | 22 1126 . . . . 44 Wheels 2135 | 17 111 219 106 996 76 610 Hover . | . . . . . . . Flight . | . . . . . . . Fastest Speed 50 | 50 105 108 108 101 101 90 Average Speed 143 | 97 212 108 108 103 101 100 Slowest Speed 330 | 120 330 108 108 108 101 120 Overloaded Moves . | . . . . . . . Propulsion Burnouts . | . . . . . . . Robots Hopped . | . . . . . . . Cave-ins Triggered . | . . . . . . . Exploration Rate (%) 46 | 3 100 16 29 94 29 52 Regions Visited 6 Branch Regions 3 Pre-discovered Areas 2 | . . . 1 1 . . Known Exits Taken . | . . . . . . . Unknown Exits Taken 6 | 1 1 1 1 1 1 . Scrap Searched 1 | . . . 1 . . . Spaces Dug . | . . . . . . . Terrain Destroyed 21 | . . . . . . 21 Melee . | . . . . . . . Projectile . | . . . . . . . AOE 21 | . . . . . . 21 Terrain Rammed . | . . . . . . . Walls Destroyed . | . . . . . . . Machines Disabled . | . . . . . . . Actions | -11 -10 -9 -9 -9 -8 -8 --------- Run | Yrd Mat Mat Min Exi Min Mat Total 4154 | 64 1514 252 108 1009 75 1132 Wait 504 | . 156 3 . . . 345 Move 3332 | 49 1236 218 105 995 75 654 Hop . | . . . . . . . Pick Up 61 | 8 28 6 1 4 . 14 Fast Attach 7 | 4 . 1 . . . 2 Attach 31 | 2 8 2 . . . 19 Detach . | . . . . . . . Swap 28 | 1 12 2 . 1 . 12 Drop 33 | . 9 6 . 4 . 14 Fire 147 | . 65 14 2 . . 66 Melee 6 | . . . . . . 6 Ram . | . . . . . . . Kick . | . . . . . . . Crush . | . . . . . . . Escape Stasis . | . . . . . . . Rewire 5 | . . . . 5 . . Trap . | . . . . . . . Miscellaneous . | . . . . . . . Route ------- -11/Scrapyard -10/Materials (discovered 6 exits: *Mat x3 / [*Min x2] / [*Sub]) -9/Materials -9/Mines -9/Exiles (discovered 2 exits: [*Min x2]) -8/Mines -8/Materials (discovered 1 exit: [*Fac]) History --------- Turn | Location | Event 8 | -11/Scrapyard | Discovered new exit (range 15) 67 | -11/Scrapyard | Entered Materials 177 | -10/Materials | Discovered new exit (range 16) 270 | -10/Materials | Discovered new exit (range 16) 312 | -10/Materials | Build established: Mutant 821 | -10/Materials | Lost 4 parts (2p1n1w) 1136 | -10/Materials | Discovered new exit (range 15) 1184 | -10/Materials | Discovered new exit (range 7) 2284 | -10/Materials | Discovered new exit (range 7) 2750 | -10/Materials | Discovered new exit (range 11) 3100 | -10/Materials | Entered another Materials area 3100 | -9/Materials | Evolved 2 slots: Propulsion x1, Utility x1 3285 | -9/Materials | Discovered new exit (range 5) 3381 | -9/Materials | Met 8R-AWN 3393 | -9/Materials | Entered Mines 3395 | -9/Mines | Followed 8R-AWN into the Mines 3509 | -9/Mines | Discovered new exit (range 5) 3513 | -9/Mines | Entered Exiles 3540 | -9/Exiles | Welcomed by 8R-AWN 3558 | -9/Exiles | Met EX-HEX 3639 | -9/Exiles | Met EX-DEC 3687 | -9/Exiles | Learned location of Zion (-7) 3748 | -9/Exiles | Met EX-BIN 3765 | -9/Exiles | Aligned with FarCom system 3766 | -9/Exiles | Given EX-Vault access code 3873 | -9/Exiles | Opened EX-Vault 3879 | -9/Exiles | Found Prototype Device 3882 | -9/Exiles | Identified Supersonic Drone Bay 3886 | -9/Exiles | Found Potential Leg 3890 | -9/Exiles | Found Potential Leg 3931 | -9/Exiles | Warned to stay clear of 0b10 Research branches 4013 | -9/Exiles | Discovered new exit (range 14) 4098 | -9/Exiles | Visited The Gauntlet 4329 | -9/Exiles | Learned about 8R-AWN's background 4352 | -9/Exiles | Discovered new exit (range 14) 4555 | -9/Exiles | Left Exiles lab with Potential Leg 4555 | -9/Exiles | Entered Mines 4612 | -8/Mines | Discovered new exit (range 8) 4631 | -8/Mines | Entered Materials 4631 | -8/Materials | Evolved 2 slots: Power x1, Utility x1 4905 | -8/Materials | Lost 4 parts (1p2n1u) 5117 | -8/Materials | Discovered new exit (range 16) 5275 | -8/Materials | Repaired Arm. Wheel 5823 | -8/Materials | Core integrity fell below 50% 5835 | -8/Materials | Core integrity fell below 20% 5866 | -8/Materials | Lost 12 parts (1p4n3u4w) 5896 | -8/Materials | Destroyed by G-47 Trooper with Particle Gun Last Messages --------------- ,ISUVZ&,A00|UQ3&,UNP6 U-05 Engineer lays Concrete. M-13 Machinist repairs G-47 Trooper. O-24 Administrator: "IFF HANDSHAKE FAILED. SECURING TERMINAL." O-24 Administrator uses terminal to summon reinforcements. ALERT: Hostiles spotted, dispatching reinforcements to Terminal M009. O-24 Administrator locks terminal. O-24 Administrator destroyed. K-01 Serf collects debris. Acquired 10 matter. K-01 Serf collects debris. Connecting with Terminal... >>Traps(Locate) Found 1 trap in 1 array: 1x Shock Trap Map updated. G-47 Trooper destroyed. Map ----- +----------------------------------------------------+ | ??# | | ??# =! | | ??# = | | ??# % | | ??# == %% | | ??# == % | | ??# == % | | ??# | | ??# % ] | | ??# % #########+## | | ??#=% ######/#####???????? | | ?###/### #???# #???????? | | ?# = # #???# """" #???????? | | ?# % # #???# """" #???????? | | ?# = # #???# """" #??###### | | ?# ] # #???# #??# | | ?####"## #???# !#??# | | ??## ### #???########??# | | ???###?# #?????????????# | | ???????# #?????????????# | | ???????# #?????????????# | | ######?# #?????????????# | | # T #?# #?????????????# | | # ]### ###???????????# | | # # !#???????????###### | | # =%@# " ! #??????????????# | | # g=%+ "T%/+ ?????????????# | | # [ # = # ???????????# | | # ! # = # ?????????# | | # ### ###? ! #???????# | | # / #?# #???? #???????## | | ######?# #?????####????????# | | ???????# #?????????????????# | | ???????#^#?????????????????# | | ???????# #?????????????????# | | ???????# #?????????????????# | | ???????# #####????????????## | | ???????# ############## | | ???????# | | ???????# T | | ???????# !g g | | ???????# ###+########## | | ???????## ## #### | | ????????# ## """ """ ! #??? | | ????????# ## """ """ ???? | | ????????# ## """ """ ???? | | ????????# ## ????## | | ????????# ## ???# | | ????????# ############???#" | | ????????# # #???????#" | +----------------------------------------------------+ Best States ------------- Heat Dissipation 35 Coolant Potential 50 Energy Generation 21 Energy Capacity 405 Matter Stores 300 Matter Capacity 300 Sight Range 16 Terrain Scan Density 10 Armor Coverage 150 Resistance: TH 10 Power Shielding 33 Evasion (%) 60 Targeting Accuracy 14 Item Schematics ----------------- None Robot Schematics ------------------ None Fabricated ------------ Nothing Alien Tech Used ----------------- None Achievements -------------- None Challenges ------------ None Game ------ Seed ReactiveFrostNetwork Manual? 0 Play Time 00:58:30 Cumulative 18.6 hours Start 2024.04.16 @ 00:06:24 End 2024.04.18 @ 06:14:58 Sessions 3 Manual Loads 0 Difficulty Rogue Special Mode None Game No. 19 Rogue 19 Adventurer 0 Explorer 0 Win Type - Total 0 Types 0/0/0/0/0/0/0/0/0 Lore% 15 Gallery% 20 Achievement% 100 Wizard Run 0 Options --------- Layout 1 ASCII 0 Keyboard 0 Movement Mouse Keybinds 0 Fullscreen 1 Font 24/Smallcaps Map View 50x35 Zoom Use 0% Tactical HUD 0 Map Filters NONE Filters NONE Steam 1 RUN: f8acd7f7-aaa7-4599-90df-e43dcd8f83e7